Workbook

Sheet NSU
B1: Anniina Kangasluoma | E1: 5.11.2003 Lapua
B2: SUPERPESIS | E2: Runkosarja | I2: Kärkilyönnit (KL), pesänvälit | Q2: Runkosarja | U2: Ylempi loppusarja | Z2: Alempi loppusarja | AG2: Arvo-ottelut ja mitalit
B3: Vuosi | C3: Sija | D3: Seura | E3: OTT | F3: KUN | G3: LÖI | H3: TOI | I3: KL | J3: 0 > 1 | K3: 1 > 2 | L3: 2 > 3 | M3: 3 > k | N3: KL-% | P3: LÖI | Q3: TOI | R3: L+T | S3: KL | U3: OTT | V3: KUN | W3: LÖI | X3: TOI | Y3: KL | Z3: OTT | AA3: KUN | AB3: LÖI | AC3: TOI | AD3: KL | AE3: IL | AF3: LL | AG3: Halli | AH3: K | AI3: H | AJ3: P
B4: 2016 | C4: 7. | D4: Virkiä 2 | F4: suomensarja | O4: 0
B5: 2017 | C5: 2. | D5: Virkiä 2 | F5: suomensarja | O5: 0
B6: 2018 | C6: 1. | D6: Virkiä 2 | F6: suomensarja
B7: 2019 | C7: 6. | D7: Virkiä 2 | F7: suomensarja
B8: 2020 | C8: 1. | D8: Virkiä 2 | F8: suomensarja
B9: 2021 | C9: 8. | D9: Virkiä 2 | F9: ykköspesis
B10: 2022 | C10: 5. | D10: Jalas | F10: ykköspesis
B11: 2022 | C11: 3 | D11: Virkiä | E11: 2 | F11: 0 | G11: 0 | H11: 0 | I11: 0 | J11: 0 | K11: 0 | L11: 0 | M11: 0 | N11: 0.0 % | O11: 1 | AJ11: 1
B12: 2023 | C12: 7. | D12: Jalas | F12: ykköspesis
B13: 2023 | C13: 3. | D13: Virkiä | E13: 18 | F13: 0 | G13: 3 | H13: 0 | I13: 9 | J13: 2 | K13: 1 | L13: 3 | M13: 3 | N13: 42.9 % | O13: 21 | U13: 10 | V13: 0 | W13: 1 | X13: 0 | Y13: 2 | AJ13: 1
B14: 2024 | C14: 2. | D14: Virkiä | E14: 24 | F14: 1 | G14: 8 | H14: 7 | I14: 27 | J14: 2 | K14: 2 | L14: 14 | M14: 9 | N14: 47.4 % | O14: 57 | U14: 11 | V14: 0 | W14: 0 | X14: 0 | Y14: 5 | AI14: 1
B15: Yhteensä | E15: =SUM(E4:E14) -> 44 | F15: 1 | G15: 11 | H15: 7 | I15: 36 | J15: 4 | K15: 3 | L15: 17 | M15: 12 | N15: =PRODUCT(I15/O15) -> 45.6 % | O15: =SUM(O5:O14) -> 79 | U15: =SUM(U4:U14) -> 21 | V15: 0 | W15: 1 | X15: 0 | Y15: 7 | Z15: 0 | AA15: 0 | AB15: 0 | AC15: 0 | AD15: 0 | AE15: 0 | AF15: 0 | AG15: 0 | AH15: 0 | AI15: 1 | AJ15: 2
B16: Pesispörssi | D16: =SUM(F15:H15)+((I15-F15-G15)/3)+(E15/3)+(AE15*25)+(AF15*25)+(AG15*10)+(AH15*25)+(AI15*20)+(AJ15*15)-15 -> 76.7
B18: URA SUPERISSA | E18: OTT | F18: KUN | G18: LÖI | H18: TOI | I18: KL | K18: ka/L | L18: ka/T | M18: ka/KL | N18: K - % | P18: ENSIMMÄISET
B19: Runkosarja | E19: =PRODUCT(E15) -> 44 | F19: =PRODUCT(F15) -> 1 | G19: =PRODUCT(G15) -> 11 | H19: =PRODUCT(H15) -> 7 | I19: =PRODUCT(I15) -> 36 | K19: =PRODUCT((F19+G19)/E19) -> 0.27 | L19: =PRODUCT(H19/E19) -> 0.16 | M19: =PRODUCT(I19/E19) -> 0.82 | N19: =PRODUCT(N15) -> 45.6 % | O19: =PRODUCT(O15) -> 79 | P19: Ottelu | R19: 06.07. 2022 Virkiä - SMJ 2-0 (5-1, 4-3) | AB19: 1. ottelu | AG19: 18 v 8 kk 1 pv
B20: Ylempi loppusarja | E20: =PRODUCT(U15) -> 21 | F20: =PRODUCT(V15) -> 0 | G20: 1 | H20: 0 | I20: 7 | K20: =PRODUCT((F20+G20)/E20) -> 0.05 | L20: =PRODUCT(H20/E20) -> 0.00 | M20: =PRODUCT(I20/E20) -> 0.33 | N20: =PRODUCT(I20/O20) -> 36.8 % | O20: 19 | P20: Lyöty | R20: 09.07. 2023 Virkiä - HP 2-0 (2-1, 12-1) | AB20: 10. ottelu | AG20: 19 v 8 kk 4 pv
B21: Alempi loppusarja | P21: Tuotu | R21: 12.05. 2024 Virkiä - PöU 2-0 (12-1, 11-1) | AB21: 32. ottelu | AG21: 20 v 6 kk 1 pv
B22: KAIKKI | E22: =SUM(E19:E21) -> 65 | F22: =SUM(F19:F21) -> 1 | G22: =SUM(G19:G21) -> 12 | H22: =SUM(H19:H21) -> 7 | I22: =SUM(I19:I21) -> 43 | K22: =PRODUCT((F22+G22)/E22) -> 0.20 | L22: =PRODUCT(H22/E22) -> 0.11 | M22: =PRODUCT(I22/E22) -> 0.66 | N22: =PRODUCT(I22/O22) -> 43.9 % | O22: =SUM(O19:O21) -> 98 | P22: Kunnari | R22: 28.05. 2024 Virkiä - HP 2-0 (6-2, 7-2) | AB22: 35. ottelu | AG22: 20 v 6 kk 17 pv
B24: Seurat | D24: Virkiä = Lapuan Virkiä (1907), kasvattajaseura
D25: Jalas = Jalasjärven Jalas (1914)

Sheet NYP,NSS
B1: Anniina Kangasluoma | F1: 5.11.2003 Lapua
B2: YKKÖSPESIS | E2: Runkosarja | L2: Runkosarja TOP-10 | Q2: Jatkosarjat | X2: SUOMENSARJA | AA2: Runkosarja | AH2: Runkosarja TOP-10 | AM2: Jatkosarjat
B3: Vuosi | C3: Sija | D3: Seura | E3: OTT | F3: KUN | G3: LÖI | H3: TOI | I3: KL | J3: KL-% | L3: LÖI | M3: TOI | N3: L+T | O3: KL | Q3: OTT | R3: KUN | S3: LÖI | T3: TOI | U3: KL | V3: KL-% | X3: Vuosi | Y3: Sija | Z3: Seura | AA3: OTT | AB3: KUN | AC3: LÖI | AD3: TOI | AE3: KL | AF3: KL-% | AH3: LÖI | AI3: TOI | AJ3: L+T | AK3: KL | AM3: OTT | AN3: KUN | AO3: LÖI | AP3: TOI | AQ3: KL | AR3: KL-%
X4: 2016 | Y4: 7. | Z4: Virkiä 2 | AA4: 3 | AB4: 0 | AC4: 0 | AD4: 0 | AE4: 3 | AF4: 37.5 % | AG4: 8
X5: 2017 | Y5: 2. | Z5: Virkiä 2 | AA5: 2 | AB5: 0 | AC5: 1 | AD5: 0 | AE5: 5 | AF5: 62.5 % | AG5: 8
X6: 2018 | Y6: 1. | Z6: Virkiä 2 | AA6: 12 | AB6: 2 | AC6: 12 | AD6: 14 | AE6: 45 | AF6: 67.2 % | AG6: 67 | AM6: 1 | AN6: 0 | AO6: 0 | AP6: 1 | AQ6: 2 | AR6: 33.3 % | AS6: 6
X7: 2019 | Y7: 6. | Z7: Virkiä 2 | AA7: 7 | AB7: 0 | AC7: 3 | AD7: 7 | AE7: 20 | AF7: 52.6 % | AG7: 38
X8: 2020 | Y8: 1. | Z8: Virkiä 2 | AA8: 6 | AB8: 0 | AC8: 4 | AD8: 3 | AE8: 16 | AF8: 66.7 % | AG8: 24 | AM8: 5 | AN8: 0 | AO8: 5 | AP8: 1 | AQ8: 20 | AR8: 69.0 % | AS8: 29
B9: 2021 | C9: 8. | D9: Virkiä 2 | E9: 13 | F9: 0 | G9: 2 | H9: 5 | I9: 36 | J9: 54.6 % | K9: =PRODUCT(I9/J9) -> 66
B10: 2022 | C10: 5. | D10: Jalas | E10: 2 | F10: 0 | G10: 0 | H10: 4 | I10: 9 | J10: 50.0 % | K10: 18
B11: YHTEENSÄ | E11: =SUM(E4:E10) -> 15 | F11: =SUM(F4:F10) -> 0 | G11: =SUM(G4:G10) -> 2 | H11: =SUM(H4:H10) -> 9 | I11: =SUM(I4:I10) -> 45 | J11: =PRODUCT(I11/K11) -> 53.6 % | K11: =SUM(K4:K10) -> 83.99450046 | Q11: =SUM(Q4:Q10) -> 0 | R11: =SUM(R4:R10) -> 0 | S11: =SUM(S4:S10) -> 0 | T11: =SUM(T4:T10) -> 0 | U11: =SUM(U4:U10) -> 0 | V11: 0.0 % | W11: =SUM(W4:W10) -> 0 | X11: YHTEENSÄ | AA11: =SUM(AA4:AA10) -> 30 | AB11: =SUM(AB4:AB10) -> 2 | AC11: =SUM(AC4:AC10) -> 20 | AD11: =SUM(AD4:AD10) -> 24 | AE11: =SUM(AE4:AE10) -> 89 | AF11: =PRODUCT(AE11/AG11) -> 61.4 % | AG11: =SUM(AG4:AG10) -> 145 | AM11: =SUM(AM4:AM10) -> 6 | AN11: =SUM(AN4:AN10) -> 0 | AO11: =SUM(AO4:AO10) -> 5 | AP11: =SUM(AP4:AP10) -> 2 | AQ11: =SUM(AQ4:AQ10) -> 22 | AR11: =PRODUCT(AQ11/AS11) -> 62.9 % | AS11: =SUM(AS4:AS10) -> 35
B13: KAIKKI OTTELUT | E13: OTT | F13: KUN | G13: LÖI | H13: TOI | I13: KL | J13: KL-% | L13: ka/L | M13: ka/T | N13: ka/l+t | O13: ka/kl | R13: Seurat | T13: Virkiä = Lapuan Virkiä (1907), kasvattajaseura
B14: SUPERPESIS | E14: 2 | F14: 0 | G14: 0 | H14: 0 | I14: 0 | J14: 0.0 % | K14: 1 | L14: 0.00 | M14: 0.00 | N14: 0.00 | O14: 0.00 | T14: Jalas = Jalasjärven Jalas (1914)
B15: YKKÖSPESIS | E15: =PRODUCT(E11+Q11) -> 15 | F15: =PRODUCT(F11+R11) -> 0 | G15: =PRODUCT(G11+S11) -> 2 | H15: =PRODUCT(H11+T11) -> 9 | I15: =PRODUCT(I11+U11) -> 45 | J15: =PRODUCT(I15/K15) -> 53.6 % | K15: =PRODUCT(K11+W11) -> 83.99450046 | L15: =PRODUCT((F15+G15)/E15) -> 0.13 | M15: =PRODUCT(H15/E15) -> 0.60 | N15: =PRODUCT((F15+G15+H15)/E15) -> 0.73 | O15: =PRODUCT(I15/E15) -> 3.00
B16: SUOMENSARJA | E16: =PRODUCT(AA11+AM11) -> 36 | F16: =PRODUCT(AB11+AN11) -> 2 | G16: =PRODUCT(AC11+AO11) -> 25 | H16: =PRODUCT(AD11+AP11) -> 26 | I16: =PRODUCT(AE11+AQ11) -> 111 | J16: =PRODUCT(I16/K16) -> 61.7 % | K16: =PRODUCT(AG11+AS11) -> 180 | L16: =PRODUCT((F16+G16)/E16) -> 0.75 | M16: =PRODUCT(H16/E16) -> 0.72 | N16: =PRODUCT((F16+G16+H16)/E16) -> 1.47 | O16: =PRODUCT(I16/E16) -> 3.08
B17: YHTEENSÄ | E17: =SUM(E14:E16) -> 53 | F17: =SUM(F14:F16) -> 2 | G17: 27 | H17: 35 | I17: 156 | J17: =PRODUCT(I17/K17) -> 58.9 % | K17: =SUM(K14:K16) -> 264.9945005 | L17: =PRODUCT((F17+G17)/E17) -> 0.55 | M17: =PRODUCT(H17/E17) -> 0.66 | N17: =PRODUCT((F17+G17+H17)/E17) -> 1.21 | O17: =PRODUCT(I17/E17) -> 2.94
